[Event "Titled Tuesday Blitz August 09 Early 2022"]
[White "Srihari L R"]
[Black "Molina, Roberto Junio Brito"]
[WhiteFideId "46617116"]
[BlackFideId "2109450"]
[WhiteElo "2170"]
[BlackElo "2403"]
[Result "1-0"]
[Round "10"]
[TimeControl "180+1"]
[Date "2022.08.09"]
[WhiteClock "0:01:12"]
[BlackClock "0:00:18"]

1. d4 {[%clk 0:03:00]}  d5 {[%clk 0:02:59]} 2. c4 {[%clk 0:02:59]}  c6 {[%clk 0:02:58]} 3. Nf3 {[%clk 0:02:56]}  Nf6 {[%clk 0:02:58]} 4. Qc2 {[%clk 0:02:56]}  dxc4 {[%clk 0:02:58]} 5. e4 {[%clk 0:02:55]}  b5 {[%clk 0:02:57]} 6. b3 {[%clk 0:02:55]}  cxb3 {[%clk 0:02:57]} 7. axb3 {[%clk 0:02:56]}  e6 {[%clk 0:02:54]} 8. Bd2 {[%clk 0:02:55]}  a5 {[%clk 0:02:54]} 9. Bd3 {[%clk 0:02:55]}  Be7 {[%clk 0:02:51]} 10. O-O {[%clk 0:02:53]}  Bb7 {[%clk 0:02:49]} 11. Nc3 {[%clk 0:02:50]}  Na6 {[%clk 0:02:36]} 12. e5 {[%clk 0:02:36]}  Nd5 {[%clk 0:02:10]} 13. Nxd5 {[%clk 0:02:35]}  Qxd5 {[%clk 0:02:11]} 14. Be4 {[%clk 0:02:28]}  Qd7 {[%clk 0:02:08]} 15. Rxa5 {[%clk 0:02:21]}  Nb4 {[%clk 0:01:57]} 16. Rxa8+ {[%clk 0:02:13]}  Bxa8 {[%clk 0:01:58]} 17. Bxb4 {[%clk 0:02:09]}  Bxb4 {[%clk 0:01:57]} 18. Rc1 {[%clk 0:02:09]}  Ke7 {[%clk 0:01:29]} 19. Bxc6 {[%clk 0:02:00]}  Bxc6 {[%clk 0:01:29]} 20. Qxc6 {[%clk 0:01:59]}  Qxc6 {[%clk 0:01:28]} 21. Rxc6 {[%clk 0:01:59]}  Rd8 {[%clk 0:01:15]} 22. Rb6 {[%clk 0:01:55]}  Rd5 {[%clk 0:01:10]} 23. Rb7+ {[%clk 0:01:54]}  Kf8 {[%clk 0:01:05]} 24. Kf1 {[%clk 0:01:52]}  h6 {[%clk 0:01:03]} 25. Ke2 {[%clk 0:01:51]}  Be7 {[%clk 0:01:00]} 26. Kd3 {[%clk 0:01:49]}  g5 {[%clk 0:01:01]} 27. h3 {[%clk 0:01:45]}  f6 {[%clk 0:00:58]} 28. g4 {[%clk 0:01:41]}  b4 {[%clk 0:00:51]} 29. Ke4 {[%clk 0:01:38]}  fxe5 {[%clk 0:00:42]} 30. Nxe5 {[%clk 0:01:38]}  Ke8 {[%clk 0:00:28]} 31. Rb8+ {[%clk 0:01:28]}  Rd8 {[%clk 0:00:28]} 32. Rxd8+ {[%clk 0:01:27]}  Bxd8 {[%clk 0:00:27]} 33. Nc6 {[%clk 0:01:27]}  Bb6 {[%clk 0:00:22]} 34. Nxb4 {[%clk 0:01:26]}  Kd7 {[%clk 0:00:23]} 35. Nd3 {[%clk 0:01:26]}  Ke7 {[%clk 0:00:23]} 36. b4 {[%clk 0:01:22]}  Kd6 {[%clk 0:00:22]} 37. Ne5 {[%clk 0:01:21]}  Ke7 {[%clk 0:00:22]} 38. b5 {[%clk 0:01:20]}  Bc7 {[%clk 0:00:20]} 39. Nc4 {[%clk 0:01:18]}  Kd7 {[%clk 0:00:20]} 40. b6 {[%clk 0:01:18]}  Bh2 {[%clk 0:00:19]} 41. Ne5+ {[%clk 0:01:16]}  Kc8 {[%clk 0:00:20]} 42. Nf7 {[%clk 0:01:14]}  Kb7 {[%clk 0:00:20]} 43. Nxh6 {[%clk 0:01:14]}  Kxb6 {[%clk 0:00:21]} 44. Nf7 {[%clk 0:01:14]}  Bf4 {[%clk 0:00:20]} 45. Nd8 {[%clk 0:01:13]}  Kc7 {[%clk 0:00:18]} 46. Nxe6+ {[%clk 0:01:12]} 1-0


[Site "https://www.chess.com"]

[Event "Titled Tuesday Blitz August 09 Early 2022"]
[White "Terrieux, Kevin"]
[Black "Samant Aditya S"]
[WhiteFideId "622591"]
[BlackFideId "35080580"]
[WhiteElo "2461"]
[BlackElo "1968"]
[Result "0-1"]
[Round "10"]
[TimeControl "180+1"]
[Date "2022.08.09"]
[WhiteClock "0:00:39"]
[BlackClock "0:00:14"]

1. d4 {[%clk 0:02:57]}  Nf6 {[%clk 0:02:55]} 2. f3 {[%clk 0:02:49]}  d5 {[%clk 0:02:51]} 3. e4 {[%clk 0:02:49]}  dxe4 {[%clk 0:02:12]} 4. Nc3 {[%clk 0:02:48]}  Bf5 {[%clk 0:01:52]} 5. fxe4 {[%clk 0:02:48]}  Nxe4 {[%clk 0:01:51]} 6. Qf3 {[%clk 0:02:48]}  Nd6 {[%clk 0:01:46]} 7. Bf4 {[%clk 0:02:47]}  Nc6 {[%clk 0:01:24]} 8. O-O-O {[%clk 0:02:34]}  Bg6 {[%clk 0:01:14]} 9. d5 {[%clk 0:02:05]}  Nb4 {[%clk 0:01:14]} 10. a3 {[%clk 0:02:05]}  Nxc2 {[%clk 0:01:01]} 11. Bxd6 {[%clk 0:01:24]}  Qxd6 {[%clk 0:01:02]} 12. Bb5+ {[%clk 0:01:23]}  Kd8 {[%clk 0:01:02]} 13. Ne4 {[%clk 0:01:02]}  Qb6 {[%clk 0:00:50]} 14. Kxc2 {[%clk 0:00:54]}  Qxb5 {[%clk 0:00:48]} 15. Ne2 {[%clk 0:00:54]}  Qa4+ {[%clk 0:00:36]} 16. Kd3 {[%clk 0:00:54]}  Bxe4+ {[%clk 0:00:28]} 17. Qxe4 {[%clk 0:00:54]}  Qxe4+ {[%clk 0:00:29]} 18. Kxe4 {[%clk 0:00:55]}  g6 {[%clk 0:00:29]} 19. Rhf1 {[%clk 0:00:53]}  Ke8 {[%clk 0:00:25]} 20. Rc1 {[%clk 0:00:51]}  Rc8 {[%clk 0:00:25]} 21. Nc3 {[%clk 0:00:50]}  a6 {[%clk 0:00:18]} 22. Na4 {[%clk 0:00:50]}  f5+ {[%clk 0:00:19]} 23. Kd3 {[%clk 0:00:40]}  Rd8 {[%clk 0:00:14]} 24. Kc4 {[%clk 0:00:39]}  b5+ {[%clk 0:00:14]} 0-1


[Site "https://www.chess.com"]

[Event "Titled Tuesday Blitz August 09 Early 2022"]
[White "Veiga, Jose Francisco R P Neves"]
[Black "Hua, Lefong"]
[WhiteFideId "1930087"]
[BlackFideId "2602253"]
[WhiteElo "2273"]
[BlackElo "2597"]
[Result "0-1"]
[Round "10"]
[TimeControl "180+1"]
[Date "2022.08.09"]
[WhiteClock "0:02:10"]
[BlackClock "0:01:34"]

1. e4 {[%clk 0:03:00]}  c5 {[%clk 0:02:59]} 2. Nf3 {[%clk 0:03:00]}  g6 {[%clk 0:02:59]} 3. Bc4 {[%clk 0:02:59]}  Bg7 {[%clk 0:02:58]} 4. c3 {[%clk 0:02:59]}  e6 {[%clk 0:02:56]} 5. d4 {[%clk 0:02:59]}  cxd4 {[%clk 0:02:54]} 6. cxd4 {[%clk 0:03:00]}  d5 {[%clk 0:02:53]} 7. exd5 {[%clk 0:02:59]}  exd5 {[%clk 0:02:54]} 8. Bb3 {[%clk 0:02:59]}  Ne7 {[%clk 0:02:53]} 9. h3 {[%clk 0:02:58]}  O-O {[%clk 0:02:53]} 10. O-O {[%clk 0:02:59]}  Nbc6 {[%clk 0:02:53]} 11. Nc3 {[%clk 0:02:59]}  Nf5 {[%clk 0:02:43]} 12. Nxd5 {[%clk 0:02:57]}  Nfxd4 {[%clk 0:02:40]} 13. Nxd4 {[%clk 0:02:57]}  Nxd4 {[%clk 0:02:40]} 14. Bf4 {[%clk 0:02:55]}  Ne6 {[%clk 0:02:38]} 15. Bg3 {[%clk 0:02:54]}  Bxb2 {[%clk 0:02:33]} 16. Rb1 {[%clk 0:02:54]}  Bg7 {[%clk 0:02:28]} 17. Re1 {[%clk 0:02:55]}  Bd7 {[%clk 0:02:26]} 18. Bc4 {[%clk 0:02:42]}  Bc6 {[%clk 0:02:24]} 19. Nb4 {[%clk 0:02:40]}  Qxd1 {[%clk 0:02:18]} 20. Rexd1 {[%clk 0:02:24]}  Be4 {[%clk 0:02:13]} 21. Rbc1 {[%clk 0:02:15]}  Bb2 {[%clk 0:02:13]} 22. Nd5 {[%clk 0:02:13]}  Bxd5 {[%clk 0:02:09]} 23. Bxd5 {[%clk 0:02:14]}  Bxc1 {[%clk 0:02:08]} 24. Rxc1 {[%clk 0:02:14]}  Rac8 {[%clk 0:02:03]} 25. Re1 {[%clk 0:02:15]}  b6 {[%clk 0:01:54]} 26. Bxe6 {[%clk 0:02:15]}  fxe6 {[%clk 0:01:54]} 27. Rxe6 {[%clk 0:02:16]}  Rc2 {[%clk 0:01:51]} 28. Re7 {[%clk 0:02:14]}  Rxa2 {[%clk 0:01:46]} 29. Be5 {[%clk 0:02:13]}  Rfxf2 {[%clk 0:01:43]} 30. Rg7+ {[%clk 0:02:09]}  Kf8 {[%clk 0:01:40]} 31. Rxh7 {[%clk 0:02:09]}  Rxg2+ {[%clk 0:01:38]} 32. Kh1 {[%clk 0:02:10]}  Rge2 {[%clk 0:01:35]} 33. Bd6+ {[%clk 0:02:10]}  Kg8 {[%clk 0:01:34]} 0-1


[Site "https://www.chess.com"]

[Event "Titled Tuesday Blitz August 09 Early 2022"]
[White "Vifleemskaia, Svetlana"]
[Black "Vasques, Antonio Pedro Freixial"]
[WhiteFideId "4129490"]
[BlackFideId "1908332"]
[WhiteElo "1929"]
[BlackElo "2243"]
[Result "1/2-1/2"]
[Round "10"]
[TimeControl "180+1"]
[Date "2022.08.09"]
[WhiteClock "0:00:04"]
[BlackClock "0:00:12"]

1. d4 {[%clk 0:02:54]}  Nf6 {[%clk 0:02:59]} 2. c4 {[%clk 0:02:53]}  e6 {[%clk 0:02:56]} 3. Nc3 {[%clk 0:02:51]}  Bb4 {[%clk 0:02:55]} 4. e3 {[%clk 0:02:50]}  O-O {[%clk 0:02:55]} 5. Ne2 {[%clk 0:02:51]}  d5 {[%clk 0:02:52]} 6. a3 {[%clk 0:02:52]}  Bd6 {[%clk 0:02:51]} 7. cxd5 {[%clk 0:02:52]}  exd5 {[%clk 0:02:51]} 8. g3 {[%clk 0:02:53]}  c6 {[%clk 0:02:47]} 9. Bg2 {[%clk 0:02:53]}  Re8 {[%clk 0:02:39]} 10. O-O {[%clk 0:02:53]}  Bf5 {[%clk 0:02:38]} 11. f3 {[%clk 0:02:52]}  Bg6 {[%clk 0:02:38]} 12. Nf4 {[%clk 0:02:44]}  Nbd7 {[%clk 0:02:32]} 13. Nxg6 {[%clk 0:02:43]}  hxg6 {[%clk 0:02:33]} 14. e4 {[%clk 0:02:42]}  dxe4 {[%clk 0:02:31]} 15. fxe4 {[%clk 0:02:42]}  Qb6 {[%clk 0:02:29]} 16. Kh1 {[%clk 0:02:41]}  Rad8 {[%clk 0:02:26]} 17. e5 {[%clk 0:02:34]}  Nxe5 {[%clk 0:02:26]} 18. dxe5 {[%clk 0:02:34]}  Bxe5 {[%clk 0:02:27]} 19. Qf3 {[%clk 0:02:31]}  Rd7 {[%clk 0:02:13]} 20. Bf4 {[%clk 0:02:28]}  Bxf4 {[%clk 0:02:04]} 21. Qxf4 {[%clk 0:02:10]}  Qxb2 {[%clk 0:02:03]} 22. Na4 {[%clk 0:02:08]}  Qd2 {[%clk 0:01:43]} 23. Nc5 {[%clk 0:02:04]}  Qxf4 {[%clk 0:01:34]} 24. Rxf4 {[%clk 0:01:57]}  Rde7 {[%clk 0:01:34]} 25. Bf3 {[%clk 0:01:52]}  b6 {[%clk 0:01:31]} 26. Nd3 {[%clk 0:01:40]}  c5 {[%clk 0:01:16]} 27. Kg2 {[%clk 0:01:29]}  g5 {[%clk 0:01:03]} 28. Ra4 {[%clk 0:01:25]}  Rd8 {[%clk 0:00:56]} 29. Nf2 {[%clk 0:01:23]}  Rd2 {[%clk 0:00:54]} 30. Rd1 {[%clk 0:01:15]}  Rxd1 {[%clk 0:00:36]} 31. Nxd1 {[%clk 0:01:08]}  a5 {[%clk 0:00:37]} 32. Rc4 {[%clk 0:01:06]}  Rd7 {[%clk 0:00:36]} 33. g4 {[%clk 0:01:03]}  Rd2+ {[%clk 0:00:35]} 34. Nf2 {[%clk 0:00:59]}  Nd7 {[%clk 0:00:33]} 35. Re4 {[%clk 0:00:49]}  Ra2 {[%clk 0:00:30]} 36. Re8+ {[%clk 0:00:46]}  Kh7 {[%clk 0:00:28]} 37. Re7 {[%clk 0:00:46]}  Nf6 {[%clk 0:00:23]} 38. Re3 {[%clk 0:00:43]}  g6 {[%clk 0:00:21]} 39. Kg3 {[%clk 0:00:42]}  Kg7 {[%clk 0:00:21]} 40. Ne4 {[%clk 0:00:39]}  Nxe4+ {[%clk 0:00:20]} 41. Bxe4 {[%clk 0:00:40]}  b5 {[%clk 0:00:21]} 42. Bd5 {[%clk 0:00:38]}  Rd2 {[%clk 0:00:21]} 43. Bc6 {[%clk 0:00:35]}  b4 {[%clk 0:00:20]} 44. axb4 {[%clk 0:00:35]}  axb4 {[%clk 0:00:21]} 45. Rb3 {[%clk 0:00:32]}  f5 {[%clk 0:00:21]} 46. h3 {[%clk 0:00:27]}  Kf6 {[%clk 0:00:22]} 47. gxf5 {[%clk 0:00:19]}  gxf5 {[%clk 0:00:23]} 48. h4 {[%clk 0:00:19]}  gxh4+ {[%clk 0:00:20]} 49. Kxh4 {[%clk 0:00:19]}  Ke5 {[%clk 0:00:21]} 50. Kg3 {[%clk 0:00:18]}  Kd4 {[%clk 0:00:20]} 51. Bb5 {[%clk 0:00:18]}  Rc2 {[%clk 0:00:19]} 52. Kf4 {[%clk 0:00:17]}  Rf2+ {[%clk 0:00:19]} 53. Kg3 {[%clk 0:00:17]}  Ra2 {[%clk 0:00:17]} 54. Kf4 {[%clk 0:00:17]}  Ra1 {[%clk 0:00:09]} 55. Kxf5 {[%clk 0:00:16]}  Rf1+ {[%clk 0:00:07]} 56. Ke6 {[%clk 0:00:16]}  Re1+ {[%clk 0:00:06]} 57. Kd6 {[%clk 0:00:16]}  Rd1 {[%clk 0:00:04]} 58. Kc6 {[%clk 0:00:16]}  c4 {[%clk 0:00:04]} 59. Rxb4 {[%clk 0:00:15]}  Kc3 {[%clk 0:00:05]} 60. Rxc4+ {[%clk 0:00:15]}  Kb3 {[%clk 0:00:06]} 61. Rc5 {[%clk 0:00:15]}  Ka3 {[%clk 0:00:06]} 62. Rc4 {[%clk 0:00:15]}  Rh1 {[%clk 0:00:06]} 63. Kb6 {[%clk 0:00:13]}  Rh2 {[%clk 0:00:07]} 64. Rc5 {[%clk 0:00:11]}  Kb2 {[%clk 0:00:08]} 65. Bc4 {[%clk 0:00:09]}  Rc2 {[%clk 0:00:08]} 66. Kb5 {[%clk 0:00:09]}  Kc1 {[%clk 0:00:09]} 67. Kb4 {[%clk 0:00:09]}  Rh2 {[%clk 0:00:09]} 68. Rd5 {[%clk 0:00:08]}  Rg2 {[%clk 0:00:09]} 69. Rd4 {[%clk 0:00:07]}  Rh2 {[%clk 0:00:09]} 70. Rd3 {[%clk 0:00:08]}  Rf2 {[%clk 0:00:10]} 71. Kc3 {[%clk 0:00:08]}  Rc2+ {[%clk 0:00:10]} 72. Kb3 {[%clk 0:00:08]}  Rh2 {[%clk 0:00:11]} 73. Kc3 {[%clk 0:00:08]}  Rc2+ {[%clk 0:00:11]} 74. Kd4 {[%clk 0:00:09]}  Rh2 {[%clk 0:00:12]} 75. Bb3 {[%clk 0:00:09]}  Rf2 {[%clk 0:00:11]} 76. Kc3 {[%clk 0:00:08]}  Rc2+ {[%clk 0:00:11]} 77. Kb4 {[%clk 0:00:07]}  Rh2 {[%clk 0:00:12]} 78. Rc3+ {[%clk 0:00:05]}  Kb1 {[%clk 0:00:12]} 79. Rd3 {[%clk 0:00:04]}  Kc1 {[%clk 0:00:12]} 80. Rd1+ {[%clk 0:00:04]}  Kb2 {[%clk 0:00:11]} 81. Rd4 {[%clk 0:00:05]}  Kc1 {[%clk 0:00:11]} 82. Kc3 {[%clk 0:00:04]}  Rh3+ {[%clk 0:00:12]} 83. Kc4 {[%clk 0:00:05]}  Rh2 {[%clk 0:00:12]} 84. Rd1+ {[%clk 0:00:05]}  Kb2 {[%clk 0:00:12]} 85. Rd4 {[%clk 0:00:06]}  Kc1 {[%clk 0:00:12]} 86. Rd1+ {[%clk 0:00:05]}  Kb2 {[%clk 0:00:12]} 87. Rd3 {[%clk 0:00:05]}  Kc1 {[%clk 0:00:12]} 88. Kc3 {[%clk 0:00:05]}  Rc2+ {[%clk 0:00:12]} 89. Bxc2 {[%clk 0:00:04]} 1/2-1/2


[Site "https://www.chess.com"]

[Event "Titled Tuesday Blitz August 09 Early 2022"]
[White "Vlassov, Nikolai"]
[Black "Chernomordik, Pavel"]
[WhiteFideId "4103360"]
[BlackFideId "2804530"]
[WhiteElo "2324"]
[BlackElo "2217"]
[Result "1/2-1/2"]
[Round "10"]
[TimeControl "180+1"]
[Date "2022.08.09"]
[WhiteClock "0:00:42"]
[BlackClock "0:00:07"]

1. e4 {[%clk 0:02:54]}  g6 {[%clk 0:02:59]} 2. h4 {[%clk 0:02:53]}  d5 {[%clk 0:02:58]} 3. exd5 {[%clk 0:02:53]}  Nf6 {[%clk 0:02:58]} 4. Bb5+ {[%clk 0:02:52]}  c6 {[%clk 0:02:55]} 5. dxc6 {[%clk 0:02:52]}  Nxc6 {[%clk 0:02:54]} 6. Nc3 {[%clk 0:02:51]}  Bg7 {[%clk 0:02:51]} 7. d3 {[%clk 0:02:50]}  a6 {[%clk 0:02:47]} 8. Bxc6+ {[%clk 0:02:50]}  bxc6 {[%clk 0:02:47]} 9. Nge2 {[%clk 0:02:50]}  Rb8 {[%clk 0:02:41]} 10. b3 {[%clk 0:02:48]}  Nd5 {[%clk 0:02:38]} 11. Bb2 {[%clk 0:02:48]}  O-O {[%clk 0:02:35]} 12. O-O {[%clk 0:02:44]}  Bg4 {[%clk 0:02:33]} 13. f3 {[%clk 0:02:27]}  Qb6+ {[%clk 0:02:22]} 14. Rf2 {[%clk 0:02:20]}  Bd7 {[%clk 0:02:13]} 15. Nxd5 {[%clk 0:02:16]}  cxd5 {[%clk 0:02:12]} 16. Bxg7 {[%clk 0:02:16]}  Kxg7 {[%clk 0:02:12]} 17. Qd2 {[%clk 0:02:16]}  Qf6 {[%clk 0:02:02]} 18. Raf1 {[%clk 0:02:14]}  Qxh4 {[%clk 0:02:01]} 19. g3 {[%clk 0:01:56]}  Qb4 {[%clk 0:01:56]} 20. Qxb4 {[%clk 0:01:49]}  Rxb4 {[%clk 0:01:55]} 21. c4 {[%clk 0:01:49]}  Bf5 {[%clk 0:01:48]} 22. Rd1 {[%clk 0:01:46]}  Rd8 {[%clk 0:01:45]} 23. Nd4 {[%clk 0:01:42]}  Bd7 {[%clk 0:01:40]} 24. a3 {[%clk 0:01:38]}  Rb7 {[%clk 0:01:34]} 25. c5 {[%clk 0:01:36]}  Rc7 {[%clk 0:01:34]} 26. b4 {[%clk 0:01:35]}  e5 {[%clk 0:01:33]} 27. Ne2 {[%clk 0:01:33]}  a5 {[%clk 0:01:31]} 28. f4 {[%clk 0:01:33]}  f6 {[%clk 0:01:30]} 29. fxe5 {[%clk 0:01:33]}  fxe5 {[%clk 0:01:29]} 30. d4 {[%clk 0:01:33]}  axb4 {[%clk 0:01:27]} 31. axb4 {[%clk 0:01:32]}  Rb8 {[%clk 0:01:26]} 32. dxe5 {[%clk 0:01:30]}  Rxb4 {[%clk 0:01:20]} 33. Nf4 {[%clk 0:01:20]}  Rxc5 {[%clk 0:01:06]} 34. Nd3 {[%clk 0:01:14]}  Rd4 {[%clk 0:01:04]} 35. Nxc5 {[%clk 0:01:14]}  Rxd1+ {[%clk 0:01:03]} 36. Kh2 {[%clk 0:01:14]}  Bf5 {[%clk 0:00:53]} 37. Rb2 {[%clk 0:01:06]}  d4 {[%clk 0:00:45]} 38. Rb7+ {[%clk 0:01:03]}  Kh6 {[%clk 0:00:44]} 39. e6 {[%clk 0:01:01]}  Re1 {[%clk 0:00:43]} 40. Rd7 {[%clk 0:00:56]}  Bxe6 {[%clk 0:00:35]} 41. Nxe6 {[%clk 0:00:53]}  Rxe6 {[%clk 0:00:34]} 42. Rxd4 {[%clk 0:00:53]}  Kg5 {[%clk 0:00:34]} 43. Kh3 {[%clk 0:00:51]}  h5 {[%clk 0:00:33]} 44. Rd5+ {[%clk 0:00:52]}  Kh6 {[%clk 0:00:31]} 45. Rc5 {[%clk 0:00:52]}  Re3 {[%clk 0:00:29]} 46. Rb5 {[%clk 0:00:52]}  Re6 {[%clk 0:00:27]} 47. Ra5 {[%clk 0:00:52]}  g5 {[%clk 0:00:27]} 48. Rb5 {[%clk 0:00:50]}  Kg6 {[%clk 0:00:27]} 49. Ra5 {[%clk 0:00:50]}  Rf6 {[%clk 0:00:20]} 50. Rb5 {[%clk 0:00:50]}  Rf5 {[%clk 0:00:20]} 51. Rb6+ {[%clk 0:00:50]}  Kf7 {[%clk 0:00:20]} 52. Rb7+ {[%clk 0:00:50]}  Ke6 {[%clk 0:00:19]} 53. Rb6+ {[%clk 0:00:50]}  Ke5 {[%clk 0:00:19]} 54. Rb5+ {[%clk 0:00:47]}  Ke4 {[%clk 0:00:19]} 55. Rb4+ {[%clk 0:00:48]}  Kd3 {[%clk 0:00:18]} 56. Rb3+ {[%clk 0:00:48]}  Kc4 {[%clk 0:00:17]} 57. Re3 {[%clk 0:00:44]}  Kd4 {[%clk 0:00:17]} 58. Ra3 {[%clk 0:00:44]}  Rd5 {[%clk 0:00:13]} 59. Ra4+ {[%clk 0:00:40]}  Ke5 {[%clk 0:00:12]} 60. Rb4 {[%clk 0:00:41]}  Kf5 {[%clk 0:00:12]} 61. Ra4 {[%clk 0:00:41]}  Ke5 {[%clk 0:00:09]} 62. Rb4 {[%clk 0:00:41]}  Rd4 {[%clk 0:00:09]} 63. Rb5+ {[%clk 0:00:41]}  Kf6 {[%clk 0:00:09]} 64. Rb6+ {[%clk 0:00:42]}  Kf5 {[%clk 0:00:08]} 65. Rb5+ {[%clk 0:00:42]}  Kf6 {[%clk 0:00:08]} 66. Rb6+ {[%clk 0:00:43]}  Ke5 {[%clk 0:00:07]} 67. Rb5+ {[%clk 0:00:43]}  Rd5 {[%clk 0:00:07]} 68. Rb4 {[%clk 0:00:42]} 1/2-1/2


[Site "https://www.chess.com"]

[Event "Titled Tuesday Blitz August 09 Early 2022"]
[White "Volkov, Maksim"]
[Black "Jeet, Jain"]
[WhiteFideId "54123070"]
[BlackFideId "5073022"]
[WhiteElo "2155"]
[BlackElo "2055"]
[Result "0-1"]
[Round "10"]
[TimeControl "180+1"]
[Date "2022.08.09"]
[WhiteClock "0:00:19"]
[BlackClock "0:00:19"]

1. d4 {[%clk 0:03:00]}  Nf6 {[%clk 0:02:55]} 2. c4 {[%clk 0:03:00]}  g6 {[%clk 0:02:53]} 3. g3 {[%clk 0:03:00]}  Bg7 {[%clk 0:02:54]} 4. Bg2 {[%clk 0:03:00]}  O-O {[%clk 0:02:54]} 5. Nc3 {[%clk 0:03:00]}  c6 {[%clk 0:02:53]} 6. e4 {[%clk 0:02:59]}  d6 {[%clk 0:02:53]} 7. Nf3 {[%clk 0:02:59]}  Qa5 {[%clk 0:02:53]} 8. O-O {[%clk 0:02:59]}  e5 {[%clk 0:02:52]} 9. a3 {[%clk 0:02:49]}  Nbd7 {[%clk 0:02:52]} 10. b4 {[%clk 0:02:48]}  Qc7 {[%clk 0:02:52]} 11. h3 {[%clk 0:02:45]}  a5 {[%clk 0:02:52]} 12. Be3 {[%clk 0:02:42]}  Re8 {[%clk 0:02:50]} 13. Re1 {[%clk 0:02:42]}  exd4 {[%clk 0:02:45]} 14. Nxd4 {[%clk 0:02:41]}  Ne5 {[%clk 0:02:41]} 15. Qb3 {[%clk 0:02:38]}  Be6 {[%clk 0:02:13]} 16. Nxe6 {[%clk 0:02:36]}  Rxe6 {[%clk 0:02:14]} 17. c5 {[%clk 0:02:20]}  dxc5 {[%clk 0:02:12]} 18. bxc5 {[%clk 0:02:19]}  Ned7 {[%clk 0:02:04]} 19. Rab1 {[%clk 0:02:17]}  Bf8 {[%clk 0:02:00]} 20. Na4 {[%clk 0:02:10]}  Nxe4 {[%clk 0:01:57]} 21. Bf4 {[%clk 0:02:08]}  Nexc5 {[%clk 0:01:49]} 22. Qxe6 {[%clk 0:02:00]}  Qxf4 {[%clk 0:01:37]} 23. Nxc5 {[%clk 0:01:47]}  fxe6 {[%clk 0:01:27]} 24. gxf4 {[%clk 0:01:46]}  Nxc5 {[%clk 0:01:27]} 25. Red1 {[%clk 0:01:38]}  Be7 {[%clk 0:01:21]} 26. Rd4 {[%clk 0:01:31]}  a4 {[%clk 0:01:20]} 27. Bf3 {[%clk 0:01:19]}  Nb3 {[%clk 0:01:19]} 28. Rd7 {[%clk 0:01:18]}  Bxa3 {[%clk 0:01:18]} 29. Rxb7 {[%clk 0:01:18]}  Nd2 {[%clk 0:01:16]} 30. Bxc6 {[%clk 0:01:16]}  Nxb1 {[%clk 0:01:11]} 31. Rxb1 {[%clk 0:01:17]}  Ra6 {[%clk 0:01:09]} 32. Rb8+ {[%clk 0:01:14]}  Kg7 {[%clk 0:01:05]} 33. Bb5 {[%clk 0:01:13]}  Ra5 {[%clk 0:01:04]} 34. Bc4 {[%clk 0:01:09]}  Bd6 {[%clk 0:00:55]} 35. Rb7+ {[%clk 0:01:06]}  Kf6 {[%clk 0:00:54]} 36. Rb6 {[%clk 0:01:07]}  Bxf4 {[%clk 0:00:51]} 37. Rxe6+ {[%clk 0:00:58]}  Kg5 {[%clk 0:00:51]} 38. Ra6 {[%clk 0:00:55]}  Rxa6 {[%clk 0:00:49]} 39. Bxa6 {[%clk 0:00:56]}  a3 {[%clk 0:00:47]} 40. Bc4 {[%clk 0:00:56]}  Bd6 {[%clk 0:00:37]} 41. Kg2 {[%clk 0:00:55]}  Kf4 {[%clk 0:00:37]} 42. Bf7 {[%clk 0:00:53]}  Ke5 {[%clk 0:00:34]} 43. Kf3 {[%clk 0:00:52]}  Kd4 {[%clk 0:00:34]} 44. Kg4 {[%clk 0:00:52]}  Be7 {[%clk 0:00:32]} 45. f4 {[%clk 0:00:51]}  Kc3 {[%clk 0:00:29]} 46. f5 {[%clk 0:00:51]}  h5+ {[%clk 0:00:20]} 47. Kf4 {[%clk 0:00:41]}  g5+ {[%clk 0:00:21]} 48. Ke5 {[%clk 0:00:41]}  Kb2 {[%clk 0:00:20]} 49. Ke4 {[%clk 0:00:23]}  a2 {[%clk 0:00:19]} 50. Bxa2 {[%clk 0:00:22]}  Kxa2 {[%clk 0:00:20]} 51. Kf3 {[%clk 0:00:18]}  Kb3 {[%clk 0:00:20]} 52. Kg3 {[%clk 0:00:18]}  Kc4 {[%clk 0:00:20]} 53. h4 {[%clk 0:00:19]}  g4 {[%clk 0:00:19]} 0-1


[Site "https://www.chess.com"]

[Event "Titled Tuesday Blitz August 09 Early 2022"]
[White "Williams, Simon K"]
[Black "Krzywda, Andrzej"]
[WhiteFideId "404454"]
[BlackFideId "1114565"]
[WhiteElo "2468"]
[BlackElo "2098"]
[Result "1-0"]
[Round "10"]
[TimeControl "180+1"]
[Date "2022.08.09"]
[WhiteClock "0:00:04"]
[BlackClock "0:00:02"]

1. e4 {[%clk 0:03:00]}  c5 {[%clk 0:03:00]} 2. a3 {[%clk 0:02:55]}  g6 {[%clk 0:02:59]} 3. h4 {[%clk 0:02:54]}  h6 {[%clk 0:02:53]} 4. Nc3 {[%clk 0:02:50]}  Nc6 {[%clk 0:02:51]} 5. f4 {[%clk 0:02:48]}  d6 {[%clk 0:02:42]} 6. Bc4 {[%clk 0:02:44]}  Nf6 {[%clk 0:02:31]} 7. h5 {[%clk 0:02:26]}  Bg4 {[%clk 0:02:24]} 8. Be2 {[%clk 0:02:24]}  gxh5 {[%clk 0:02:20]} 9. Nf3 {[%clk 0:02:16]}  d5 {[%clk 0:02:04]} 10. e5 {[%clk 0:02:13]}  Ne4 {[%clk 0:02:04]} 11. Nxe4 {[%clk 0:02:09]}  dxe4 {[%clk 0:02:05]} 12. Nh4 {[%clk 0:02:09]}  Bxe2 {[%clk 0:01:58]} 13. Qxe2 {[%clk 0:02:09]}  Qd5 {[%clk 0:01:49]} 14. c3 {[%clk 0:01:13]}  O-O-O {[%clk 0:01:43]} 15. Nf5 {[%clk 0:01:12]}  e6 {[%clk 0:01:30]} 16. Ng3 {[%clk 0:01:09]}  Rg8 {[%clk 0:01:06]} 17. Nxe4 {[%clk 0:01:08]}  Be7 {[%clk 0:01:06]} 18. Rxh5 {[%clk 0:00:57]}  c4 {[%clk 0:01:04]} 19. b3 {[%clk 0:00:42]}  Na5 {[%clk 0:00:56]} 20. bxc4 {[%clk 0:00:40]}  Nxc4 {[%clk 0:00:56]} 21. d4 {[%clk 0:00:35]}  Rg6 {[%clk 0:00:45]} 22. Kf1 {[%clk 0:00:28]}  Rdg8 {[%clk 0:00:43]} 23. Rh2 {[%clk 0:00:29]}  h5 {[%clk 0:00:39]} 24. Ra2 {[%clk 0:00:16]}  h4 {[%clk 0:00:33]} 25. Qf3 {[%clk 0:00:17]}  Kb8 {[%clk 0:00:25]} 26. Rf2 {[%clk 0:00:16]}  Qb5 {[%clk 0:00:24]} 27. Kg1 {[%clk 0:00:16]}  Qb1 {[%clk 0:00:24]} 28. Rf1 {[%clk 0:00:16]}  Qc2 {[%clk 0:00:22]} 29. Nf2 {[%clk 0:00:11]}  h3 {[%clk 0:00:16]} 30. g4 {[%clk 0:00:09]}  Qa4 {[%clk 0:00:10]} 31. g5 {[%clk 0:00:09]}  Rh8 {[%clk 0:00:09]} 32. Rxh3 {[%clk 0:00:09]}  Rxh3 {[%clk 0:00:09]} 33. Nxh3 {[%clk 0:00:10]}  Rg8 {[%clk 0:00:09]} 34. Nf2 {[%clk 0:00:10]}  Rh8 {[%clk 0:00:09]} 35. Kg2 {[%clk 0:00:10]}  Qe8 {[%clk 0:00:08]} 36. Qd3 {[%clk 0:00:10]}  Nb6 {[%clk 0:00:07]} 37. Rh1 {[%clk 0:00:10]}  Nd5 {[%clk 0:00:07]} 38. Rxh8 {[%clk 0:00:09]}  Qxh8 {[%clk 0:00:07]} 39. Qh3 {[%clk 0:00:10]}  Qg8 {[%clk 0:00:06]} 40. Qh6 {[%clk 0:00:10]}  Qc8 {[%clk 0:00:06]} 41. Qh3 {[%clk 0:00:10]}  Nxc3 {[%clk 0:00:05]} 42. Qf3 {[%clk 0:00:08]}  Nd5 {[%clk 0:00:04]} 43. Bd2 {[%clk 0:00:07]}  Qc2 {[%clk 0:00:04]} 44. Qe2 {[%clk 0:00:05]}  Qf5 {[%clk 0:00:03]} 45. Kg3 {[%clk 0:00:05]}  Bxa3 {[%clk 0:00:02]} 46. Qf3 {[%clk 0:00:04]}  Be7 {[%clk 0:00:02]} 47. Be1 {[%clk 0:00:04]}  Qc2 {[%clk 0:00:02]} 48. Ne4 {[%clk 0:00:03]}  Qc4 {[%clk 0:00:02]} 49. Bf2 {[%clk 0:00:04]} 1-0


[Site "https://www.chess.com"]